fUST/lending_fUST_20250830
["ID","MTS","AMOUNT","RATE_DAILY","PERIOD"]
[382081254,1756498239786,-381.495875,0.000249,7]
[382081256,1756498239796,-381.495875,0.000249,7]
[382081258,1756498239805,-381.495875,0.000249,7]
[382081260,1756498239814,-381.495875,0.000249,7]
[382081262,1756498239824,-151.0,0.000249,7]
[382081264,1756498239833,-151.0,0.000249,7]
[382081266,1756498239842,-151.0,0.000249,7]
[382081268,1756498239851,-151.0,0.000249,7]
[382081270,1756498239860,-151.0,0.000249,7]
[382081272,1756498239869,-151.0,0.000249,7]
[382081274,1756498239878,-151.0,0.000249,7]
[382081276,1756498239887,-151.0,0.000249,7]
[382081278,1756498239896,-151.0,0.000249,7]
[382081280,1756498239906,-168.449759,0.000249,7]
[382081282,1756498239915,-151.0,0.000249,7]
[382081284,1756498239924,-151.0,0.000249,7]
[382081286,1756498239934,-362092.492124,0.000249,2]
[382081287,1756498239944,-151.0,0.000249,7]
[382081290,1756498239953,-151.0,0.000249,7]
[382081292,1756498239963,-151.0,0.000249,7]
[382081294,1756498239973,-151.0,0.000249,7]
[382081296,1756498239982,-151.0,0.000249,7]
[382081298,1756498239992,-151.0,0.000249,7]
[382081299,1756498240000,-151.0,0.000249,7]
[382081302,1756498240010,-151.0,0.000249,7]
[382081303,1756498240019,-6820.43482052,0.000249,2]
[382081304,1756498240029,-703.2901461,0.00024918,2]
[382081305,1756498240038,-2810.34742382,0.00024918,2]
[382081306,1756498240047,-451.32851167,0.00024918,2]
[382081307,1756498240056,-1805.31404666,0.00024918,2]
[382081308,1756498240065,-4057.89464838,0.00024918,2]
[382081309,1756498240075,-270.83195173,0.00024949,2]
[382081310,1756498240084,-3319.42957947,0.00024951,2]
[382081311,1756498240093,-6638.85915894,0.0002496,2]
[382081312,1756498240102,-267.657014,0.0002497,7]
[382081313,1756498240111,-381.495875,0.0002497,7]
[382081314,1756498240124,-381.495875,0.0002497,7]
[382081316,1756498240133,-381.495875,0.0002497,7]
[382081317,1756498240142,-381.495875,0.0002497,7]
[382081319,1756498240150,-151.0,0.0002497,7]
[382081321,1756498240159,-151.0,0.0002497,7]
[382081323,1756498240169,-151.0,0.0002497,7]
[382081325,1756498240179,-151.0,0.0002497,7]
[382081327,1756498240189,-287.860876,0.0002497,7]
[382081329,1756498240198,-151.0,0.0002497,7]
[382081331,1756498240208,-151.0,0.0002497,7]
[382081333,1756498240217,-151.0,0.0002497,7]
[382081335,1756498240226,-3319.42957947,0.0002497,2]
[382081338,1756498240236,-151.0,0.0002497,7]
[382081341,1756498240256,-151.0,0.0002497,7]
[382081343,1756498240268,-151.0,0.0002497,7]
[382081345,1756498240277,-151.0,0.0002497,7]
[382081347,1756498240287,-3319.42957947,0.0002497,2]
[382081349,1756498240296,-500.0,0.00024973,2]
[382081351,1756498240306,-500.0,0.00024973,2]
[382081353,1756498240316,-500.0,0.00024973,2]
[382081355,1756498240326,-500.0,0.00024973,2]
[382081357,1756498240336,-500.0,0.00024973,2]
[382081359,1756498240346,-587.62849385,0.00024973,2]
[382081361,1756498240355,-223.07154621,0.00024973,2]
[382081363,1756498240369,-408.9402474,0.00024973,2]
[382081365,1756498240379,-500.0,0.00024973,2]
[382081367,1756498240389,-500.0,0.00024973,2]
[382081369,1756498240399,-206.02767631,0.00024973,2]
[382081372,1756498240410,-500.0,0.00024973,2]
[382081374,1756498240420,-310.28792753,0.00024973,2]
[382081376,1756498240430,-500.0,0.00024973,2]
[382081378,1756498240444,-502.3979921,0.00024973,2]
[382081380,1756498240454,-545.16757163,0.00024973,2]
[382081382,1756498240464,-500.0,0.00024973,2]
[382081384,1756498240471,-500.0,0.00024973,2]
[382081386,1756498240480,-500.0,0.00024973,2]
[382081388,1756498240487,-500.0,0.00024973,2]
[382081390,1756498240494,-500.0,0.00024973,2]
[382081392,1756498240502,-500.0,0.00024973,2]
[382081394,1756498240511,-500.0,0.00024973,2]
[382081396,1756498240520,-500.0,0.00024973,2]
[382081398,1756498240528,-500.0,0.00024973,2]
[382081400,1756498240537,-500.0,0.00024973,2]
[382081402,1756498240546,-514.05922812,0.00024973,2]
[382081404,1756498240555,-500.0,0.00024973,2]
[382081406,1756498240563,-527.10676263,0.00024973,2]
[382081408,1756498240572,-500.0,0.00024973,2]
[382081411,1756498240581,-623.8679292,0.00024973,2]
[382081413,1756498240590,-500.0,0.00024973,2]
[382081415,1756498240600,-500.0,0.00024973,2]
[382081417,1756498240609,-500.0,0.00024973,2]
[382081419,1756498240618,-500.0,0.00024973,2]
[382081421,1756498240628,-500.0,0.00024973,2]
[382081423,1756498240638,-162.90205408,0.00024973,2]
[382081425,1756498240648,-500.0,0.00024973,2]
[382081427,1756498240657,-500.0,0.00024973,2]
[382081429,1756498240666,-500.0,0.00024973,2]
[382081431,1756498240677,-500.0,0.00024973,2]
[382081433,1756498240686,-500.0,0.00024973,2]
[382081435,1756498240696,-500.0,0.00024973,2]
[382081437,1756498240706,-500.0,0.00024973,2]
[382081439,1756498240715,-501.92982423,0.00024973,2]
[382081441,1756498240725,-500.0,0.00024973,2]
[382081443,1756498240734,-500.0,0.00024973,2]
[382081445,1756498240744,-151.0,0.00024973,7]
[382081448,1756498240754,-151.0,0.00024973,7]
[382081450,1756498240763,-151.0,0.00024973,7]
[382081452,1756498240773,-151.0,0.00024973,7]
[382081454,1756498240783,-205.158088,0.00024973,7]
[382081456,1756498240792,-160.0,0.00024973,7]
[382081458,1756498240801,-232.6790651,0.00024973,7]
[382081460,1756498240811,-845.57753514,0.00024973,7]
[382081462,1756498240820,-381.495875,0.0002498,7]
[382081464,1756498240829,-381.495875,0.0002498,7]
[382081466,1756498240839,-381.495875,0.0002498,7]
[382081468,1756498240850,-381.495875,0.0002498,7]
[382081470,1756498240860,-151.0,0.0002498,7]
[382081472,1756498240869,-151.0,0.0002498,7]
[382081474,1756498240879,-151.0,0.0002498,7]
[382081476,1756498240888,-151.0,0.0002498,7]
[382081478,1756498240898,-160.0,0.0002498,7]
[382081480,1756498240907,-529.77114056,0.0002498,7]
[382081482,1756498240916,-160.0,0.0002498,7]
[382081484,1756498240926,-1000.0,0.0002498,2]
[382081486,1756498240935,-1000.0,0.0002498,2]
[382081488,1756498240945,-1000.0,0.0002498,2]
[382081490,1756498240954,-1000.0,0.0002498,2]
[382081492,1756498240964,-1000.0,0.0002498,2]
[382081494,1756498240973,-1000.0,0.0002498,2]
[382081496,1756498240983,-1000.0,0.0002498,2]
[382081498,1756498240992,-1000.0,0.0002498,2]
[382081500,1756498241001,-1000.0,0.0002498,2]
[382081502,1756498241011,-1000.0,0.0002498,2]
[382081504,1756498241020,-1000.0,0.0002498,2]
[382081506,1756498241029,-1000.0,0.0002498,2]
[382081508,1756498241038,-1000.0,0.0002498,2]
[382081510,1756498241048,-1000.0,0.0002498,2]
[382081512,1756498241057,-1000.0,0.0002498,2]
[382081534,1756498241257,-1000.0,0.0002498,2]
[382081536,1756498241267,-1000.0,0.0002498,2]
[382081538,1756498241277,-1000.0,0.0002498,2]
[382081540,1756498241286,-1000.0,0.0002498,2]
[382081542,1756498241295,-1000.0,0.0002498,2]
[382081544,1756498241305,-1000.0,0.0002498,2]
[382081546,1756498241314,-1000.0,0.0002498,2]
[382081548,1756498241323,-1000.0,0.0002498,2]
[382081550,1756498241332,-1000.0,0.0002498,2]
[382081552,1756498241341,-1000.0,0.0002498,2]
[382081554,1756498241350,-1000.0,0.0002498,2]
[382081556,1756498241361,-1000.0,0.0002498,2]
[382081558,1756498241371,-1000.0,0.0002498,2]
[382081560,1756498241381,-1000.0,0.0002498,2]
[382081562,1756498241390,-1000.0,0.0002498,2]
[382081564,1756498241400,-1000.0,0.0002498,2]
[382081566,1756498241410,-1000.0,0.0002498,2]
[382081568,1756498241419,-1000.0,0.0002498,2]
[382081570,1756498241432,-1000.0,0.0002498,2]
[382081572,1756498241444,-1000.0,0.0002498,2]
[382081574,1756498241455,-1000.0,0.0002498,2]
[382081576,1756498241465,-538.962732,0.0002498,2]
[382081578,1756498241476,-151.0,0.0002498,7]
[382081580,1756498241487,-417.15472785,0.0002498,7]
[382081582,1756498241497,-151.0,0.0002498,7]
[382081584,1756498241508,-151.0,0.0002498,7]
[382081586,1756498241519,-151.0,0.0002498,7]
[382081588,1756498241530,-151.0,0.0002498,7]
[382081590,1756498241540,-160.0,0.0002498,7]
[382081592,1756498241551,-151.0,0.0002498,7]
[382081594,1756498241561,-151.0,0.0002498,7]
[382081596,1756498241571,-151.0,0.0002498,7]
[382081598,1756498241581,-151.0,0.0002498,7]
[382081600,1756498241591,-6638.85915894,0.0002498,2]
[382081602,1756498241601,-91697.56460275,0.0002499,2]
[382081604,1756498241611,-151.0,0.0002499,7]
[382081606,1756498241620,-151.422193,0.0002499,7]
[382081608,1756498241630,-220.0,0.0002499,7]
[382081610,1756498241639,-381.495875,0.0002499,7]
[382081612,1756498241649,-381.495875,0.0002499,7]
[382081614,1756498241658,-381.495875,0.0002499,7]
[382081616,1756498241668,-381.495875,0.0002499,7]
[382081618,1756498241682,-151.0,0.0002499,7]
[382081620,1756498241692,-151.0,0.0002499,7]
[382081622,1756498241702,-151.0,0.0002499,7]
[382081624,1756498241711,-151.0,0.0002499,7]
[382081626,1756498241720,-151.0,0.0002499,7]
[382081628,1756498241730,-151.0,0.0002499,7]
[382081629,1756498241740,-151.0,0.0002499,7]
[382081630,1756498241750,-151.0,0.0002499,7]
[382081631,1756498241759,-292.687492,0.0002499,7]
[382081632,1756498241769,-500.0,0.00024993,2]
[382081633,1756498241779,-151.0,0.00025,7]
[382081634,1756498241788,-151.0,0.000251,17]
[382081635,1756498241798,-374.0,0.00025145,2]
[382081636,1756498241807,-151.0,0.000252,12]
[382081637,1756498241817,-151.0,0.000252,16]
[382081638,1756498241827,-3319.42957947,0.00025258,2]
[382081640,1756498241837,-500.0,0.00025267,2]
[382081641,1756498241847,-1226.26693758,0.00025268,2]
[382081644,1756498241857,-834.52151966,0.00025268,2]
[382081645,1756498241866,-1500.0,0.00025268,2]
[382081647,1756498241876,-964.90478575,0.00025268,2]
[382081649,1756498241885,-588.00830605,0.00025268,2]
[382081652,1756498241895,-1500.0,0.00025268,2]
[382081654,1756498241906,-1500.0,0.00025268,2]
[382081656,1756498241916,-514.00608882,0.00025268,2]
[382081657,1756498241927,-1500.0,0.00025268,2]
[382081659,1756498241937,-1500.0,0.00025268,2]
[382081662,1756498241947,-1500.0,0.00025346,2]
[382081664,1756498241957,-465.0,0.00025393,2]
[382081665,1756498241967,-151.0,0.000254,18]
[382081668,1756498241977,-151.0,0.000254,10]
[382081670,1756498241987,-381.495875,0.00025408,7]
[382081672,1756498241996,-381.495875,0.00025408,7]
[382081674,1756498242006,-381.495875,0.00025408,7]
[382081676,1756498242016,-381.495869,0.00025408,7]
[382081678,1756498242025,-151.0,0.00025408,7]
[382081680,1756498242034,-151.0,0.00025408,7]
[382081682,1756498242043,-151.0,0.00025408,7]
[382081684,1756498242053,-6638.85915894,0.00025409,2]
[382081686,1756498242062,-161.706,0.00025417,2]
[382081688,1756498242071,-3319.42957947,0.00025417,2]
[382081690,1756498242081,-151.0,0.00025418,7]
[382081692,1756498242090,-151.0,0.00025418,7]
[382081694,1756498242099,-151.845031,0.00025418,7]
[382081696,1756498242108,-4888.90719563,0.00025419,2]
[382081790,1756498242981,-23250.36317287,0.00025419,2]
[382081793,1756498242990,-151.0,0.00025419,7]
[382081796,1756498242999,-151.0,0.00025419,7]
[382081799,1756498243009,-151.0,0.00025419,7]
[382081801,1756498243018,-2355.8494583,0.00025419,2]
[382081803,1756498243027,-79480.9837524,0.00025419,2]
[382081806,1756498243037,-151.0,0.00025419,7]
[382081807,1756498243047,-151.0,0.00025419,7]
[382081809,1756498243056,-151.0,0.00025419,7]
[382081811,1756498243066,-1000.0,0.00025421,2]
[382081813,1756498243075,-572.32808663,0.00025421,2]
[382081816,1756498243085,-1000.0,0.00025421,2]
[382081817,1756498243094,-1000.0,0.00025421,2]
[382081820,1756498243104,-1000.0,0.00025421,2]
[382081822,1756498243113,-1000.0,0.00025421,2]
[382081824,1756498243123,-1000.0,0.00025421,2]
[382081826,1756498243132,-564.2566181,0.00025421,2]
[382081827,1756498243142,-1000.0,0.00025421,2]
[382081830,1756498243151,-250.0,0.00025421,2]
[382081832,1756498243161,-1005.91835226,0.00025421,2]
[382081834,1756498243170,-1000.0,0.00025421,2]
[382081836,1756498243181,-1000.0,0.00025421,2]
[382081837,1756498243190,-502.97496908,0.00025421,2]
[382081839,1756498243200,-399.39504596,0.00025421,2]
[382081842,1756498243209,-1000.0,0.00025421,2]
[382081844,1756498243218,-1000.0,0.00025421,2]
[382081846,1756498243228,-1000.0,0.00025421,2]
[382081848,1756498243238,-1000.0,0.00025421,2]
[382081850,1756498243248,-1000.0,0.00025421,2]
[382081852,1756498243257,-500.14150593,0.00025421,2]
[382081853,1756498243267,-1000.0,0.00025421,2]
[382081855,1756498243277,-1000.0,0.00025421,2]
[382081857,1756498243286,-716.56405269,0.00025421,2]
[382081859,1756498243295,-1004.80006471,0.00025421,2]
[382081861,1756498243305,-504.28017524,0.00025421,2]
[382081863,1756498243315,-1000.0,0.00025421,2]
[382081865,1756498243325,-1000.0,0.00025421,2]
[382081866,1756498243340,-1000.0,0.00025421,2]
[382081867,1756498243351,-1000.0,0.00025421,2]
[382081868,1756498243364,-151.0,0.00025427,2]
[382081869,1756498243374,-151.0,0.00025427,2]
[382081870,1756498243383,-151.0,0.00025427,2]
[382081871,1756498243393,-151.0,0.00025427,2]
[382081872,1756498243403,-151.0,0.00025427,2]
[382081873,1756498243413,-151.43890125,0.00025427,2]
[382081874,1756498243423,-151.0,0.00025427,2]
[382081876,1756498243435,-151.0,0.00025427,2]
[382081878,1756498243444,-151.0,0.00025427,2]
[382081880,1756498243453,-151.0,0.00025427,2]
[382081882,1756498243462,-198.65074793,0.00025427,2]
[382081884,1756498243471,-151.58812772,0.00025427,2]
[382081886,1756498243488,-151.0,0.00025427,2]
[382081888,1756498243498,-151.0,0.00025427,2]
[382081890,1756498243508,-151.0,0.00025427,2]
[382081892,1756498243518,-151.0,0.00025427,2]
[382081894,1756498243528,-279.61556348,0.00025427,2]
[382081913,1756498243714,-151.0,0.00025427,2]
[382081915,1756498243724,-151.0,0.00025427,2]
[382081917,1756498243734,-151.0,0.00025427,2]
[382081919,1756498243744,-151.0,0.00025427,2]
[382081921,1756498243753,-372.58853819,0.00025427,2]
[382081923,1756498243763,-155.51914703,0.00025427,2]
[382081925,1756498243772,-151.0,0.00025427,2]
[382081927,1756498243781,-151.0,0.00025427,2]
[382081929,1756498243791,-500.0,0.00025427,2]
[382081930,1756498243800,-151.38281223,0.00025427,2]
[382081932,1756498243809,-151.0,0.00025427,2]
[382081935,1756498243819,-151.0,0.00025427,2]
[382081936,1756498243828,-151.0,0.00025427,2]
[382081938,1756498243838,-151.93286809,0.00025427,2]
[382081940,1756498243847,-151.0,0.00025427,2]
[382081942,1756498243857,-151.0,0.00025427,2]
[382081944,1756498243866,-151.0,0.00025427,2]
[382081946,1756498243876,-151.0,0.00025427,2]
[382081949,1756498243889,-151.0,0.00025427,2]
[382081951,1756498243899,-2806.01398189,0.00025428,2]
[382081953,1756498243908,-151.0,0.00025428,7]
[382081955,1756498243917,-1000.0,0.00025428,2]
[382081957,1756498243928,-151.0,0.00025428,7]
[382081959,1756498243937,-182.152,0.00025429,10]
[382081961,1756498243946,-151.0,0.00025462,7]
[382081963,1756498243955,-276.828106,0.00025462,7]
[382081965,1756498243965,-155.777901,0.00025463,7]
[382081967,1756498243974,-500.0,0.00025473,2]
[382081969,1756498243984,-150.0,0.00025473,2]
[382081971,1756498243993,-500.0,0.00025473,2]
[382081973,1756498244002,-509.55439586,0.00025473,2]
[382081975,1756498244012,-500.0,0.00025473,2]
[382081977,1756498244023,-500.0,0.00025473,2]
[382081979,1756498244033,-500.0,0.00025473,2]
[382081981,1756498244042,-500.0,0.00025473,2]
[382081983,1756498244052,-500.88955119,0.00025473,2]
[382081985,1756498244062,-500.0,0.00025473,2]
[382081987,1756498244071,-500.0,0.00025473,2]
[382081989,1756498244081,-500.0,0.00025473,2]
[382081991,1756498244092,-500.0,0.00025473,2]
[382081993,1756498244103,-150.0,0.00025473,2]
[382081995,1756498244112,-150.0,0.00025473,2]
[382081997,1756498244122,-3319.42957947,0.0002549,2]
[382081999,1756498244132,-300.0,0.00025498,20]
[382082001,1756498244142,-300.0,0.00025498,20]
[382082002,1756498244151,-300.0,0.00025498,20]
[382082004,1756498244161,-300.0,0.00025498,20]
[382082005,1756498244170,-300.0,0.00025498,20]
[382082007,1756498244180,-300.0,0.00025498,20]
[382082008,1756498244189,-300.0,0.00025498,20]
[382082010,1756498244199,-300.0,0.00025498,20]
[382082011,1756498244208,-300.0,0.00025498,20]
[382082013,1756498244218,-300.0,0.00025498,20]
[382082014,1756498244228,-300.0,0.00025498,20]
[382082016,1756498244238,-300.0,0.00025498,20]
[382082017,1756498244247,-300.0,0.00025498,20]
[382082019,1756498244257,-300.0,0.00025498,20]
[382082020,1756498244267,-151.0,0.00025498,7]
[382082022,1756498244277,-12936.38,0.000255,7]
[382082024,1756498244287,-77033.35,0.000255,7]
[382082025,1756498244297,-151.0,0.000255,20]
[382082027,1756498244306,-160.0,0.000255,7]
[382082028,1756498244317,-417.15472785,0.000255,7]
[382082030,1756498244328,-1500.0,0.000255,28]
[382082031,1756498244338,-1500.0,0.000255,28]
[382082033,1756498244347,-1500.0,0.000255,28]
[382082034,1756498244357,-1500.0,0.000255,28]
[382082036,1756498244371,-1500.0,0.000255,28]
[382082038,1756498244382,-1500.0,0.000255,28]
[382082039,1756498244390,-1500.0,0.000255,28]
[382082041,1756498244399,-1500.0,0.000255,28]
[382082043,1756498244410,-1500.0,0.000255,28]
[382082044,1756498244420,-1616.619519,0.000255,28]
[382082046,1756498244432,-500.3473098,0.00025521,2]
[382082048,1756498244442,-1000.0,0.00025521,2]
[382082049,1756498244452,-1005.84975311,0.00025521,2]
[382082051,1756498244461,-1000.0,0.00025521,2]
[382082053,1756498244471,-1000.0,0.00025521,2]
[382082054,1756498244481,-1000.0,0.00025521,2]
[382082056,1756498244491,-1000.0,0.00025521,2]
[382082058,1756498244500,-1000.0,0.00025521,2]
[382082059,1756498244510,-1000.0,0.00025521,2]
[382082061,1756498244520,-1000.0,0.00025521,2]
[382082062,1756498244530,-1000.0,0.00025521,2]
[382082064,1756498244539,-1000.0,0.00025521,2]
[382082066,1756498244550,-1000.0,0.00025521,2]
[382082067,1756498244559,-1005.92988686,0.00025521,2]
[382082069,1756498244569,-1000.0,0.00025521,2]
[382082071,1756498244579,-424.86532121,0.00025521,2]
[382082072,1756498244588,-1000.0,0.00025521,2]
[382082074,1756498244598,-1000.0,0.00025521,2]
[382082076,1756498244608,-500.0,0.00025521,2]
[382082077,1756498244619,-1000.0,0.00025521,2]
[382082079,1756498244628,-1000.0,0.00025521,2]
[382082081,1756498244638,-1000.0,0.00025521,2]
[382082082,1756498244647,-1000.0,0.00025521,2]
[382082084,1756498244657,-1000.0,0.00025521,2]
[382082086,1756498244666,-1000.0,0.00025521,2]
[382082087,1756498244676,-1000.0,0.00025521,2]
[382082089,1756498244686,-1000.0,0.00025521,2]
[382082091,1756498244695,-1000.0,0.00025521,2]
[382082092,1756498244704,-1000.0,0.00025521,2]
[382082094,1756498244714,-1000.30488028,0.00025521,2]
[382082096,1756498244724,-1000.0,0.00025521,2]
[382082097,1756498244734,-1000.0,0.00025521,2]
[382082099,1756498244743,-1000.0,0.00025521,2]
[382082101,1756498244753,-529.77114056,0.00025522,3]
[382082102,1756498244762,-160.0,0.00025522,3]
[382082104,1756498244772,-160.0,0.00025522,3]
[382082106,1756498244781,-417.15472785,0.00025522,3]
[382082107,1756498244791,-160.0,0.00025522,3]
[382082109,1756498244800,-160.0,0.00025522,3]
[382082111,1756498244810,-232.6790651,0.00025522,3]
[382082112,1756498244819,-845.57753514,0.00025522,3]
[382082114,1756498244829,-7296.38,0.00025522,3]
[382082116,1756498244838,-3648.2,0.00025522,3]
[382082117,1756498244847,-1824.1,0.00025522,3]
[382082119,1756498244863,-912.04,0.00025522,3]
[382082121,1756498244873,-456.02,0.00025522,3]
[382082122,1756498244883,-500.0,0.00025541,2]
[382082124,1756498244892,-151.0,0.000257,18]
[382082126,1756498244902,-199.24428082,0.00025701,2]
[382082127,1756498244912,-198.7638952,0.00025701,2]
[382082129,1756498244921,-151.0,0.00025701,2]
[382082131,1756498244932,-151.0,0.00025701,2]
[382082132,1756498244941,-198.0,0.00025701,2]
[382082134,1756498244951,-151.0,0.00025701,2]
[382082136,1756498244960,-183.9151083,0.00025701,2]
[382082137,1756498244970,-198.0,0.00025701,2]
[382082139,1756498244979,-198.5426892,0.00025701,2]
[382082141,1756498244989,-151.0,0.00025701,2]
[382082142,1756498244998,-151.0,0.00025701,2]
[382082144,1756498245007,-152.05357122,0.00025701,2]
[382082146,1756498245017,-216.02660723,0.00025701,2]
[382082147,1756498245027,-151.0,0.00025701,2]
[382082149,1756498245036,-151.0,0.00025701,2]
[382082151,1756498245045,-151.20429907,0.00025701,2]
[382082152,1756498245055,-151.0,0.00025701,2]
[382082154,1756498245064,-580.08213248,0.00025701,2]
[382082155,1756498245074,-152.00084592,0.00025701,2]
[382082157,1756498245084,-151.0,0.00025701,2]
[382082160,1756498245093,-151.0,0.00025701,2]
[382082162,1756498245103,-300.17546405,0.00025701,2]
[382082164,1756498245113,-151.0,0.00025701,2]
[382082165,1756498245122,-151.0,0.00025701,2]
[382082167,1756498245131,-507.8708596,0.00025815,2]
[382082170,1756498245141,-2000.0,0.00025816,2]
[382082172,1756498245150,-2000.0,0.00025816,2]
[382082174,1756498245159,-2000.0,0.00025816,2]
[382082176,1756498245169,-2000.0,0.00025816,2]
[382082179,1756498245179,-2000.0,0.00025816,2]
[382082180,1756498245188,-2000.0,0.00025894,2]
[382082181,1756498245197,-151.0,0.000259,18]
[382082182,1756498245206,-1216.00245706,0.00025968,2]
[382082183,1756498245216,-1500.0,0.00025968,2]
[382082184,1756498245225,-461.7545245,0.00025968,2]
[382082185,1756498245235,-615.00819121,0.00025968,2]
[382082186,1756498245245,-1500.0,0.00025968,2]
[382082187,1756498245254,-500.0,0.00025968,2]
[382082188,1756498245263,-1500.0,0.00025968,2]
[382082189,1756498245273,-350.0,0.00025968,2]
[382082191,1756498245283,-1547.33981831,0.00025968,2]
[382082192,1756498245293,-159.42232169,0.00025968,2]
[382082194,1756498245303,-1500.0,0.00025968,2]
[382082196,1756498245312,-1500.0,0.00025968,2]
[382082197,1756498245321,-1500.0,0.00025968,2]
[382082198,1756498245331,-1500.0,0.00025968,2]
[382082199,1756498245342,-1503.91128278,0.00025968,2]
[382082201,1756498245351,-862.42930821,0.00025968,2]
[382082203,1756498245364,-1500.0,0.00025968,2]
[382082205,1756498245375,-1500.0,0.00025968,2]
[382082207,1756498245384,-1500.0,0.00025968,2]
[382082209,1756498245394,-1500.0,0.00025968,2]
[382082211,1756498245404,-151.0,0.00025975,2]
[382082213,1756498245414,-151.0,0.00025975,2]
[382082216,1756498245423,-152.56552158,0.00025975,2]
[382082218,1756498245434,-151.0,0.00025975,2]
[382082220,1756498245443,-151.0,0.00025975,2]
[382082222,1756498245455,-151.0,0.00025975,2]
[382082223,1756498245465,-151.0,0.00025975,2]
[382082225,1756498245474,-251.6997669,0.00025975,2]
[382082227,1756498245484,-198.0,0.00025975,2]
[382082229,1756498245493,-151.0,0.00025975,2]
[382082231,1756498245502,-1899.39300723,0.00026,7]
[382082233,1756498245512,-150.0,0.00026,2]
[382082235,1756498245521,-160.0,0.00026,2]
[382082237,1756498245530,-1003.23442301,0.00026021,2]
[382082239,1756498245539,-250.0,0.00026021,2]
[382082241,1756498245549,-1000.0,0.00026021,2]
[382082243,1756498245558,-1000.0,0.00026021,2]
[382082245,1756498245567,-1000.0,0.00026021,2]
[382082247,1756498245576,-1000.0,0.00026021,2]
[382082249,1756498245586,-188.65173561,0.00026021,2]
[382082251,1756498245595,-502.76839876,0.00026021,2]
[382082253,1756498245604,-1000.0,0.00026021,2]
[382082255,1756498245613,-1000.0,0.00026021,2]
[382082257,1756498245622,-1000.0,0.00026021,2]
[382082259,1756498245631,-300.78409437,0.00026021,2]
[382082261,1756498245640,-250.0,0.00026021,2]
[382082263,1756498245650,-168.068286,0.00026027,2]
[382082265,1756498245659,-1500.0,0.00026068,2]
[382082267,1756498245667,-1500.0,0.00026068,2]
[382082269,1756498245677,-1105.45486562,0.00026068,2]
[382082271,1756498245688,-998.97763198,0.00026068,2]
[382082273,1756498245697,-1500.0,0.00026068,2]
[382082275,1756498245706,-1288.42633231,0.00026068,2]
[382082277,1756498245715,-1500.0,0.00026068,2]
[382082279,1756498245724,-501.40951824,0.00026068,2]
[382082281,1756498245734,-1502.63562332,0.00026068,2]
[382082283,1756498245743,-1500.0,0.00026068,2]
[382082285,1756498245754,-1000.0,0.00026068,2]
[382082287,1756498245763,-500.0,0.00026068,2]
[382082289,1756498245773,-1000.0,0.00026068,2]
[382082291,1756498245782,-1500.0,0.00026068,2]
[382082293,1756498245792,-1283.25439541,0.00026068,2]
[382082295,1756498245801,-1500.0,0.00026068,2]
[382082297,1756498245811,-1500.0,0.00026068,2]
[382082299,1756498245820,-1000.0,0.00026068,2]
[382082301,1756498245830,-1001.41096466,0.00026068,2]
[382082303,1756498245839,-1010.26063339,0.00026068,2]
[382082305,1756498245849,-1104.24402065,0.00026068,2]
[382082307,1756498245860,-1058.69295384,0.00026068,2]
[382082309,1756498245869,-1001.38259314,0.00026068,2]